bitfinex/quotes_BTCUSD_20250623
["timestamp","ask_amount","ask_price","bid_price","bid_amount"]
[1750709008324,0.85565471,103240.0,103230.0,0.38039623]
[1750709008537,0.85565471,103240.0,103230.0,0.37070922]
[1750709008749,0.85565471,103240.0,103230.0,0.1769671]
[1750709008956,0.85565471,103240.0,103230.0,0.40449623]
[1750709009206,0.36355518,103240.0,103230.0,0.24690296]
[1750709009410,0.36355518,103240.0,103230.0,0.27170305]
[1750709009833,0.36355518,103240.0,103230.0,0.28138978]
[1750709010037,0.36355518,103240.0,103230.0,0.27170305]
[1750709010236,0.36355518,103240.0,103230.0,0.26201623]
[1750709010476,0.36355518,103240.0,103230.0,0.0489]
[1750709010893,0.36355518,103240.0,103230.0,0.0585871]
[1750709011102,0.36355518,103240.0,103230.0,0.26201623]
[1750709011505,0.36355518,103240.0,103230.0,0.0585871]
[1750709011626,0.36355518,103240.0,103230.0,0.26201613]
[1750709011836,0.46385457,103240.0,103230.0,0.0248]
[1750709012053,0.85565471,103240.0,103230.0,0.40988212]
[1750709012247,0.36355518,103240.0,103230.0,0.41956922]
[1750709012659,0.36355518,103240.0,103230.0,0.21614]
[1750709012660,0.003,103240.0,103230.0,0.21614]
[1750709012855,0.49509953,103240.0,103230.0,0.21614]
[1750709013265,0.003,103240.0,103230.0,0.2258271]
[1750709013476,0.003,103240.0,103230.0,0.41956922]
[1750709013688,0.003,103240.0,103230.0,0.42925623]
[1750709013886,0.003,103240.0,103230.0,0.41956922]
[1750709014092,0.003,103240.0,103230.0,0.25232922]
[1750709014299,0.003,103240.0,103230.0,0.2161]
[1750709014768,0.003,103240.0,103230.0,0.23547411]
[1750709014954,0.003,103240.0,103230.0,0.42921623]
[1750709015715,0.49509953,103240.0,103230.0,0.42921623]
[1750709015920,0.49509953,103240.0,103230.0,0.43890314]
[1750709016145,0.49509953,103240.0,103230.0,0.42921623]
[1750709016902,0.49509953,103240.0,103230.0,0.43890314]
[1750709017319,0.003,103240.0,103230.0,0.44858996]
[1750709017514,0.003,103240.0,103230.0,0.45827603]
[1750709019473,0.003,103240.0,103230.0,0.50827603]
[1750709019692,0.003,103240.0,103230.0,1.4552158]
[1750709019929,0.003,103240.0,103230.0,1.1152158]
[1750709020138,0.003,103240.0,103230.0,1.1443338]
[1750709020346,0.002,103240.0,103230.0,1.1443338]
[1750709020558,0.49209953,103270.0,103260.0,0.26224723]
[1750709020768,0.49209953,103270.0,103260.0,0.41972332]
[1750709020769,0.83209953,103270.0,103260.0,0.41972332]
[1750709020986,0.49209953,103270.0,103260.0,0.41972332]
[1750709021214,0.49209953,103270.0,103260.0,0.19236]
[1750709021425,0.83209953,103270.0,103260.0,0.40541404]
[1750709021634,0.83209953,103270.0,103260.0,0.40541413]
[1750709021858,0.83746285,103270.0,103260.0,0.40541413]
[1750709022068,0.83746285,103270.0,103260.0,0.42478186]
[1750709022286,0.83746285,103270.0,103260.0,0.40541413]
[1750709022531,0.83946285,103270.0,103260.0,0.39573003]
[1750709022745,0.83946285,103270.0,103260.0,0.41509795]
[1750709022963,0.34736332,103270.0,103260.0,0.44988158]
[1750709023655,0.34836332,103270.0,103260.0,0.44988158]
[1750709024143,0.00836332,103270.0,103260.0,0.49988158]
[1750709024590,0.00736332,103270.0,103260.0,0.49988158]
[1750709024803,0.00736332,103270.0,103260.0,0.50088158]
[1750709025055,0.00536332,103270.0,103260.0,0.50088158]
[1750709026155,0.00045838,103270.0,103260.0,0.50088158]
[1750709027727,0.00045838,103270.0,103260.0,0.60118097]
[1750709027943,0.00045838,103270.0,103260.0,1.0932805]
[1750709028151,0.00045838,103270.0,103260.0,0.60118097]
[1750709029072,0.00045838,103270.0,103260.0,1.11182135]
[1750709029759,0.0001,103300.0,103290.0,0.32227288]
[1750709030013,0.0001,103300.0,103290.0,0.58961227]
[1750709030252,0.00023747,103300.0,103290.0,0.41289145]
[1750709030461,0.00023747,103300.0,103290.0,0.48931288]
[1750709031379,0.00023747,103300.0,103290.0,0.49131288]
[1750709032018,0.00023747,103300.0,103290.0,0.49231288]
[1750709032468,0.492337,103300.0,103290.0,0.0526]
[1750709032676,0.492337,103300.0,103290.0,0.17]
[1750709033163,0.492337,103300.0,103290.0,0.39267362]
[1750709033382,0.492337,103300.0,103290.0,0.40235463]
[1750709033608,0.492337,103300.0,103290.0,0.41203573]
[1750709033828,0.492337,103300.0,103290.0,0.41203508]
[1750709034047,0.00023747,103300.0,103290.0,0.41203517]
[1750709034271,0.00023747,103300.0,103290.0,0.43733461]
[1750709034482,0.00023747,103300.0,103290.0,0.46223461]
[1750709035124,0.00023747,103300.0,103290.0,0.51219461]
[1750709035336,0.00023747,103300.0,103290.0,0.612494]
[1750709036390,0.00023747,103300.0,103290.0,0.61731582]
[1750709037507,0.00023747,103300.0,103290.0,0.92805667]
[1750709037712,0.00023747,103300.0,103290.0,1.4201562]
[1750709037935,0.00023747,103300.0,103290.0,0.92805667]
[1750709038616,0.00023747,103300.0,103290.0,0.92323485]
[1750709039284,0.00023747,103300.0,103290.0,0.951854]
[1750709039498,0.00023747,103300.0,103290.0,0.960854]
[1750709039711,0.00023747,103300.0,103290.0,0.989956]
[1750709040805,0.00023747,103300.0,103290.0,0.726836]
[1750709041017,0.00023747,103300.0,103290.0,0.776836]
[1750709041272,0.00023747,103300.0,103290.0,0.81431461]
[1750709041513,0.56992781,103300.0,103290.0,0.009]
[1750709041784,1.0627272,103300.0,103290.0,0.009]
[1750709042213,1.08578276,103300.0,103290.0,0.009]
[1750709042430,0.59368323,103300.0,103290.0,0.005]
[1750709042653,1.08578276,103300.0,103290.0,0.006]
[1750709042874,1.08578276,103300.0,103290.0,0.001]
[1750709043580,1.18608215,103300.0,103290.0,0.001]
[1750709043847,0.3901,103290.0,103270.0,0.16688]
[1750709044093,0.34,103270.0,103260.0,0.16788]
[1750709044348,0.83209953,103270.0,103260.0,0.16788]
[1750709045431,0.93239892,103270.0,103260.0,0.16788]
[1750709045912,0.93239892,103270.0,103260.0,0.003]
[1750709046119,0.95749892,103270.0,103260.0,0.003]
[1750709046569,1.005599,103270.0,103260.0,0.003]
[1750709047006,1.005599,103270.0,103260.0,0.006]
[1750709047238,2.72013379,103270.0,103220.0,0.079123]
[1750709047457,0.83209953,103230.0,103210.0,0.0002]
[1750709047703,0.49209953,103220.0,103210.0,0.20366759]
[1750709047912,0.49209953,103220.0,103210.0,0.0002]
[1750709048130,0.49209953,103220.0,103210.0,0.21335744]
[1750709048348,0.49209953,103220.0,103210.0,0.01957786]
[1750709048572,0.49209953,103220.0,103210.0,0.0002]
[1750709049008,0.49209953,103220.0,103210.0,0.00265838]
[1750709049225,0.49209953,103220.0,103210.0,0.00065838]
[1750709049442,0.49209953,103220.0,103210.0,0.00765838]
[1750709049864,0.93239892,103220.0,103210.0,0.00465838]
[1750709050081,0.93239892,103220.0,103210.0,0.01065838]
[1750709050316,0.95899892,103220.0,103210.0,0.01065838]
[1750709050537,0.98589892,103220.0,103210.0,0.01065838]
[1750709050778,0.98589892,103220.0,103210.0,0.00465838]
[1750709050986,1.08619831,103220.0,103210.0,0.00465838]
[1750709051196,1.10927549,103220.0,103210.0,0.00065838]
[1750709051412,1.08619831,103220.0,103210.0,0.00065838]
[1750709051623,1.08919831,103220.0,103210.0,0.00065838]
[1750709052324,1.10373916,103220.0,103210.0,0.00065838]
[1750709052548,2.88639716,103220.0,103210.0,0.00065838]
[1750709052783,2.94532581,103220.0,103210.0,0.00265838]
[1750709052997,2.99532581,103220.0,103210.0,0.00265838]
[1750709053205,2.99532581,103220.0,103210.0,0.00065838]
[1750709053206,3.02412942,103220.0,103210.0,0.00065838]
[1750709053420,2.99532602,103220.0,103210.0,0.00065838]
[1750709053636,2.99632602,103220.0,103210.0,0.00065838]
[1750709054075,2.99532602,103220.0,103210.0,0.00065838]
[1750709054298,2.99232602,103220.0,103210.0,0.00065838]
[1750709054566,2.99632602,103220.0,103210.0,0.00065838]
[1750709055088,3.00032602,103220.0,103210.0,0.00065838]
[1750709055988,0.49209953,103180.0,103160.0,0.053]
[1750709056199,0.49209953,103170.0,103160.0,0.00413791]
[1750709056641,0.93239892,103170.0,103160.0,0.00413791]
[1750709056858,0.44029939,103170.0,103160.0,0.00413791]
[1750709057072,0.93239892,103170.0,103160.0,0.00413791]
[1750709057483,0.93730914,103170.0,103160.0,0.00413791]
[1750709058142,0.93730914,103170.0,103160.0,0.00913791]
[1750709058358,0.93730914,103170.0,103150.0,0.21328099]
[1750709058593,0.83209953,103160.0,103150.0,0.00013781]
[1750709058819,0.34,103160.0,103150.0,0.28360752]
[1750709059043,0.34,103160.0,103150.0,0.33360752]
[1750709059273,0.34,103160.0,103150.0,0.33360761]
[1750709059497,0.34,103160.0,103150.0,0.29330157]
[1750709060535,0.83209953,103160.0,103150.0,0.21341923]
[1750709060800,0.34,103160.0,103150.0,0.24250194]
[1750709061054,0.34,103160.0,103150.0,0.24950129]
[1750709061055,0.83309953,103160.0,103150.0,0.24950129]
[1750709061269,0.341,103160.0,103150.0,0.23711319]
[1750709061478,0.341,103160.0,103150.0,0.22741895]
[1750709061686,0.83309953,103160.0,103150.0,0.22741895]
[1750709061900,0.341,103160.0,103150.0,0.24680715]
[1750709064062,0.341,103160.0,103150.0,0.20803019]
[1750709064277,0.83389953,103160.0,103150.0,0.01413781]
[1750709064709,0.83389953,103160.0,103150.0,0.22741895]
[1750709064937,0.83389953,103160.0,103150.0,0.22741914]
[1750709065157,0.83389953,103160.0,103150.0,0.21772471]
[1750709065377,0.83389953,103160.0,103150.0,0.01413781]
[1750709065591,0.93419892,103160.0,103150.0,0.01413781]
[1750709065817,0.93419892,103160.0,103150.0,0.20803019]
[1750709065818,0.44209939,103160.0,103150.0,0.20803019]
[1750709066030,0.93419892,103160.0,103150.0,0.22741914]
[1750709066260,0.93419892,103160.0,103150.0,0.21772471]
[1750709066471,0.93419892,103160.0,103150.0,0.01413781]
[1750709066914,1.52311441,103160.0,103150.0,0.01413781]
[1750709067121,1.54961441,103160.0,103150.0,0.01413781]
[1750709067337,1.57651441,103160.0,103150.0,0.01413781]
[1750709068484,1.10735112,103160.0,103150.0,0.01413781]
[1750709068696,1.10635112,103160.0,103150.0,0.00713781]
[1750709068914,1.10635112,103160.0,103150.0,0.00013781]
[1750709069131,1.10635112,103160.0,103150.0,0.00413781]
[1750709069358,0.60693159,103160.0,103150.0,0.00513781]
[1750709069805,1.00221516,103160.0,103150.0,0.00513781]
[1750709070677,1.00225516,103160.0,103150.0,0.00513781]
[1750709071826,1.02755516,103160.0,103150.0,0.00513781]
[1750709072042,3.20325635,103160.0,103150.0,0.00513781]
[1750709072284,3.24100407,103160.0,103150.0,0.00513781]
[1750709072496,3.39130346,103160.0,103150.0,0.00513781]
[1750709072714,3.05202346,103160.0,103150.0,0.00513781]
[1750709072930,2.4927334,103160.0,103150.0,0.00513781]
[1750709073140,2.98483293,103160.0,103150.0,0.00513781]
[1750709073353,2.39222466,103160.0,103150.0,0.00513781]
[1750709073568,2.44491316,103160.0,103150.0,0.00513781]
[1750709073786,2.23187316,103160.0,103150.0,0.00513781]
[1750709074006,2.44491316,103160.0,103150.0,0.00513781]
[1750709074433,2.45164824,103160.0,103150.0,0.00513781]
[1750709074642,2.48037105,103160.0,103150.0,0.00513781]
[1750709074851,3.33370777,103160.0,103150.0,0.00513781]
[1750709075276,3.36243058,103160.0,103150.0,0.00513781]
[1750709075487,2.87033105,103160.0,103150.0,0.00513781]
[1750709076143,2.82033105,103160.0,103150.0,0.00513781]
[1750709077214,0.99162646,103160.0,103150.0,0.02963781]
[1750709077430,0.49952693,103160.0,103150.0,0.05493781]
[1750709077656,0.99162646,103160.0,103150.0,0.05493781]
[1750709077869,0.99162646,103160.0,103150.0,0.25852471]
[1750709078103,0.99162646,103160.0,103150.0,0.2585248]
[1750709078333,0.99162646,103160.0,103150.0,0.05493781]
[1750709079226,0.99162646,103160.0,103150.0,0.00513781]
[1750709079447,1.03009418,103160.0,103150.0,0.00513781]
[1750709079665,1.00137137,103160.0,103150.0,0.00513781]
[1750709079879,1.10167076,103160.0,103150.0,0.00513781]
[1750709080089,1.10168481,103160.0,103150.0,0.00513781]
[1750709081405,1.63342519,103160.0,103150.0,0.00513781]
[1750709081644,1.65822519,103160.0,103150.0,0.00513781]
[1750709081854,3.33166477,103160.0,103150.0,0.00513781]
[1750709082297,2.80109752,103160.0,103150.0,0.00513781]
[1750709082522,3.19289766,103160.0,103150.0,0.00513781]
[1750709082743,0.83209953,103130.0,103120.0,0.0042]
[1750709082983,0.9584756,103130.0,103120.0,0.00466034]
[1750709083196,1.05877499,103130.0,103120.0,0.00466034]
[1750709083434,1.02011726,103130.0,103120.0,0.00466034]
[1750709083876,1.13974551,103130.0,103120.0,0.00466034]
[1750709084086,2.78148351,103130.0,103120.0,0.00466034]
[1750709084317,2.70768412,103130.0,103120.0,0.00466034]
[1750709084525,2.70768412,103130.0,103120.0,0.00866034]
[1750709084526,2.72322497,103130.0,103120.0,0.00866034]
[1750709084744,2.65618412,103130.0,103120.0,0.00866034]
[1750709085199,1.58244565,103130.0,103120.0,0.00866034]
[1750709085426,2.88750497,103130.0,103120.0,0.00866034]
[1750709085645,2.98780436,103130.0,103120.0,0.00866034]
[1750709085867,3.47071087,103130.0,103120.0,0.00866034]
[1750709086112,3.00437791,103120.0,103110.0,0.0002]
[1750709086300,3.22984088,103120.0,103110.0,0.0002]
[1750709087139,3.21171844,103120.0,103110.0,0.0002]
[1750709087366,3.21171844,103120.0,103110.0,0.0022]
[1750709087570,3.29189967,103120.0,103110.0,0.0022]
[1750709087784,3.21171844,103120.0,103110.0,0.0022]
[1750709088450,3.37863844,103120.0,103110.0,0.0052]
[1750709088696,0.01454085,103100.0,103080.0,0.004]
[1750709088905,2.62061403,103090.0,103080.0,0.004]
[1750709089127,0.96213381,103090.0,103080.0,0.004]
[1750709089359,1.0586683,103090.0,103080.0,0.0286]
[1750709089586,1.0586683,103090.0,103080.0,0.054]
[1750709089587,1.00072656,103090.0,103080.0,0.054]
[1750709089824,1.00072656,103090.0,103080.0,0.25772515]
[1750709089825,0.46644441,103090.0,103080.0,0.25772515]
[1750709090085,0.46644441,103090.0,103080.0,0.26942616]
[1750709090355,0.05890889,103090.0,103080.0,0.43926495]
[1750709090584,0.02894277,103110.0,103100.0,0.26338458]
[1750709090811,0.05909175,103110.0,103100.0,0.53652324]
[1750709091053,0.02313857,103110.0,103100.0,0.53652324]
[1750709091289,0.39208184,103120.0,103110.0,0.25386598]
[1750709091531,0.38803048,103120.0,103110.0,0.1002]
[1750709091780,0.41697343,103120.0,103110.0,0.1002]
[1750709092287,0.39887043,103120.0,103110.0,0.10889838]
[1750709092763,0.39887043,103120.0,103110.0,0.0992]
[1750709092986,0.39887043,103120.0,103110.0,0.14524]
[1750709093470,0.41697855,103120.0,103110.0,0.14524]
[1750709093709,0.41697855,103120.0,103110.0,0.36830207]
[1750709093969,0.39887043,103120.0,103110.0,0.37799998]
[1750709094193,0.39887043,103120.0,103110.0,0.38769779]
[1750709094429,0.02992766,103120.0,103110.0,0.37799941]
[1750709094679,0.53857678,103150.0,103130.0,0.24711835]
[1750709094908,0.46599255,103150.0,103130.0,0.40470251]
[1750709095135,0.46599255,103150.0,103130.0,0.39999465]
[1750709095350,0.46599255,103150.0,103140.0,0.0516]
[1750709095351,0.95809208,103150.0,103140.0,0.0516]
[1750709095593,0.46599255,103150.0,103140.0,0.0516]
[1750709095828,0.46599255,103150.0,103140.0,0.0506]
[1750709096051,0.95855007,103150.0,103140.0,0.0506]
[1750709096286,0.02615115,103150.0,103140.0,0.36963672]
[1750709097395,0.02615115,103150.0,103140.0,0.35994201]
[1750709097832,0.02615115,103150.0,103140.0,0.37933199]
[1750709098306,0.01104703,103150.0,103140.0,0.37933199]
[1750709098520,0.00725799,103150.0,103140.0,0.37933199]
[1750709098731,0.00125799,103150.0,103140.0,0.37933199]
[1750709098955,0.00125799,103150.0,103140.0,0.47963138]
[1750709099177,0.00325799,103150.0,103140.0,0.47963138]
[1750709099671,0.00225799,103150.0,103140.0,0.47963138]
[1750709099899,0.00125799,103150.0,103140.0,0.48163138]
[1750709100556,0.00125799,103150.0,103140.0,0.97373091]
[1750709100789,0.00125799,103150.0,103140.0,0.98827176]
[1750709101013,0.0008,103160.0,103150.0,0.82017463]
[1750709101234,0.0008,103160.0,103150.0,1.08819402]
[1750709101684,0.0008,103160.0,103150.0,1.10273487]
[1750709101919,0.0509,103220.0,103190.0,0.1051]
[1750709101920,0.36595169,103220.0,103190.0,0.1051]
[1750709102150,0.56969034,103200.0,103180.0,0.05]
[1750709102371,0.49209953,103190.0,103180.0,0.26416]
[1750709102598,0.37388168,103190.0,103180.0,0.51307027]
[1750709102827,0.01807111,103190.0,103180.0,0.54017036]
[1750709103054,0.01807016,103190.0,103180.0,0.5498615]
[1750709103524,0.42059081,103200.0,103190.0,0.0531]
[1750709103749,0.43865441,103200.0,103190.0,0.26229876]
[1750709103968,0.43863093,103200.0,103190.0,0.27198933]
[1750709104192,0.43863093,103200.0,103190.0,0.0491]
[1750709104420,0.42059081,103200.0,103190.0,0.05879086]
[1750709104889,0.34,103200.0,103190.0,0.0491]
[1750709105107,0.34,103200.0,103190.0,0.30260799]
[1750709105451,0.49223693,103210.0,103190.0,0.30260799]
[1750709105452,0.49223693,103210.0,103200.0,0.0277]
[1750709105679,0.3401374,103210.0,103200.0,0.19606]
[1750709106122,0.3401374,103210.0,103200.0,0.19206]
[1750709106339,0.3401374,103210.0,103200.0,0.16836]
[1750709106551,0.83223693,103210.0,103200.0,0.16836]
[1750709106766,0.83723693,103210.0,103200.0,0.16836]
[1750709106953,0.83623693,103210.0,103200.0,0.16836]
[1750709107165,0.59049521,103210.0,103200.0,0.16836]
[1750709107410,0.59249521,103210.0,103200.0,0.21836]
[1750709108466,0.346,103210.0,103200.0,0.21836]
[1750709108747,0.342,103210.0,103200.0,0.431538]
[1750709108966,0.344,103210.0,103200.0,0.458838]
[1750709109217,0.344,103210.0,103200.0,0.47684836]
[1750709109644,0.344,103210.0,103200.0,0.48653809]
[1750709109858,0.344,103210.0,103200.0,0.49622773]
[1750709110075,0.344,103210.0,103200.0,0.50591718]
[1750709110290,0.34,103210.0,103200.0,0.48653809]
[1750709110502,0.83209953,103210.0,103200.0,0.002]
[1750709110723,0.83209953,103210.0,103200.0,0.21996]
[1750709111582,0.83203169,103210.0,103200.0,0.21996]
[1750709111789,0.83203169,103210.0,103200.0,0.052]
[1750709112260,0.83203169,103210.0,103200.0,0.22024]
[1750709113401,0.83203169,103210.0,103200.0,0.052]
[1750709113620,0.93233108,103210.0,103200.0,0.002]
[1750709113843,1.00549653,103210.0,103200.0,0.002]
[1750709115160,3.12787491,103210.0,103200.0,0.002]
[1750709115387,2.63578172,103210.0,103200.0,0.002]
[1750709116520,2.63579972,103210.0,103200.0,0.002]
[1750709117167,2.73609911,103210.0,103200.0,0.002]
[1750709117605,3.25120012,103210.0,103200.0,0.002]
[1750709117845,3.30394683,103210.0,103200.0,0.002]
[1750709118461,3.36294268,103210.0,103200.0,0.002]
[1750709119356,3.36302175,103210.0,103200.0,0.002]
[1750709119987,2.77062283,103210.0,103200.0,0.002]
[1750709120428,2.82805347,103210.0,103200.0,0.002]
[1750709120872,2.77062283,103210.0,103200.0,0.002]
[1750709121074,2.82805347,103210.0,103200.0,0.002]
[1750709122327,2.77808502,103210.0,103200.0,0.002]
[1750709122534,2.77810312,103210.0,103200.0,0.002]
[1750709122947,2.86621924,103210.0,103200.0,0.002]
[1750709123383,2.91621924,103210.0,103200.0,0.002]
[1750709123584,2.77810312,103210.0,103200.0,0.002]
[1750709124513,2.82810312,103210.0,103200.0,0.002]
[1750709124726,3.32020265,103210.0,103200.0,0.002]
[1750709125385,3.26277441,103210.0,103200.0,0.002]
[1750709125816,3.29192141,103210.0,103200.0,0.002]
[1750709126235,3.36916976,103210.0,103200.0,0.002]
[1750709126876,3.46946915,103210.0,103200.0,0.002]
[1750709127910,3.46957306,103210.0,103200.0,0.002]
[1750709128132,0.35454085,103200.0,103160.0,0.31685337]
[1750709128339,0.83209953,103180.0,103170.0,0.0276]
[1750709128561,0.98030981,103180.0,103170.0,0.0276]
[1750709129185,0.98032206,103180.0,103170.0,0.0276]
[1750709129827,0.98032206,103180.0,103170.0,0.0557]
[1750709130891,0.38792314,103180.0,103170.0,0.1057]
[1750709131100,0.38112967,103180.0,103170.0,0.32493962]
[1750709131305,0.38212967,103180.0,103170.0,0.32024754]
[1750709131507,0.38212967,103180.0,103170.0,0.1167]
[1750709131990,0.8742292,103180.0,103170.0,0.1167]
[1750709132642,0.38212967,103180.0,103170.0,0.1167]
[1750709133272,0.5342292,103180.0,103170.0,0.1167]
[1750709133434,0.54102658,103180.0,103170.0,0.0667]
[1750709133606,0.54102662,103180.0,103170.0,0.0667]
[1750709133797,0.5342292,103180.0,103170.0,0.0667]
[1750709133997,0.54102598,103180.0,103170.0,0.0667]
[1750709135275,0.88102598,103180.0,103170.0,0.0667]
[1750709136528,0.88102557,103180.0,103170.0,0.0667]
[1750709136740,0.87422879,103180.0,103170.0,0.0667]
[1750709136957,0.87422879,103180.0,103170.0,0.011]
[1750709136958,0.8810267,103180.0,103170.0,0.011]
[1750709137170,0.8810267,103180.0,103170.0,0.0404]
[1750709137580,0.38892717,103180.0,103170.0,0.0404]
[1750709137808,0.8810267,103180.0,103170.0,0.0708]
[1750709138007,0.8810293,103180.0,103170.0,0.0708]
[1750709138260,0.38892977,103180.0,103170.0,0.0708]
[1750709138465,0.8810293,103180.0,103170.0,0.0708]
[1750709139549,0.88103621,103180.0,103170.0,0.0708]
[1750709140626,0.38893668,103180.0,103170.0,0.0708]
[1750709141236,0.3980146,103180.0,103170.0,0.0708]
[1750709141580,0.89011413,103180.0,103170.0,0.0708]
[1750709141782,0.88836206,103180.0,103170.0,0.0708]
[1750709142190,0.88838322,103180.0,103170.0,0.0708]
[1750709143238,0.39628369,103180.0,103170.0,0.0708]
[1750709143457,0.88838452,103180.0,103170.0,0.0708]
[1750709144389,0.92704255,103180.0,103170.0,0.0708]
[1750709146290,0.88838452,103180.0,103170.0,0.0708]
[1750709146630,0.88839569,103180.0,103170.0,0.0708]
[1750709147050,0.39629616,103180.0,103170.0,0.0708]
[1750709147613,0.88839569,103180.0,103170.0,0.0708]
[1750709148002,0.88843908,103180.0,103170.0,0.0708]
[1750709148630,0.87834626,103180.0,103170.0,0.0658]
[1750709149101,0.38624673,103180.0,103170.0,0.1138]
[1750709149300,0.38624685,103180.0,103170.0,0.12349274]
[1750709149530,0.38624685,103180.0,103170.0,0.31734754]
[1750709149531,0.37942712,103180.0,103170.0,0.31734754]
[1750709149750,0.37942712,103180.0,103170.0,0.1178]
[1750709149969,0.87834636,103180.0,103170.0,0.008]
[1750709150186,0.38624683,103180.0,103170.0,0.0657]
[1750709151080,0.38624714,103180.0,103170.0,0.0657]
[1750709151285,0.37942743,103180.0,103170.0,0.0657]
[1750709151719,0.38624734,103180.0,103170.0,0.0657]
[1750709152555,0.37942743,103180.0,103170.0,0.0657]
[1750709152977,0.87152696,103180.0,103170.0,0.0657]
[1750709153848,0.87152696,103180.0,103170.0,0.008]
[1750709154964,0.87152696,103180.0,103170.0,0.0684]
[1750709155840,0.37942743,103180.0,103170.0,0.0684]
[1750709156678,0.37943001,103180.0,103170.0,0.0684]
[1750709157799,0.37943001,103180.0,103170.0,0.12809274]
[1750709158288,0.37943001,103180.0,103170.0,0.12879274]
[1750709158508,0.37943001,103180.0,103170.0,0.1191]
[1750709158786,0.37943001,103180.0,103170.0,0.33233999]
[1750709159029,0.37943001,103180.0,103170.0,0.32264744]
[1750709159427,0.36124148,103180.0,103170.0,0.32264744]
[1750709159632,0.37943065,103180.0,103170.0,0.32264744]
[1750709159839,0.03943065,103180.0,103170.0,0.43263919]
[1750709160046,0.02910126,103210.0,103200.0,0.057]
[1750709160255,0.37409783,103210.0,103200.0,0.107]
[1750709160403,0.76885276,103210.0,103200.0,0.107]
[1750709160610,0.42885276,103210.0,103200.0,0.107]
[1750709161030,0.37409783,103210.0,103200.0,0.11668992]
[1750709161334,0.76885276,103210.0,103200.0,0.107]
[1750709161741,0.75294046,103210.0,103200.0,0.107]
[1750709162000,0.34,103210.0,103200.0,0.107]
[1750709162260,0.02910126,103220.0,103210.0,0.27035688]
[1750709162464,0.50989886,103230.0,103210.0,0.29824576]
[1750709162687,0.12834209,103230.0,103220.0,0.0294]
[1750709163109,0.12834209,103230.0,103220.0,0.0572]
[1750709163316,0.11019825,103230.0,103220.0,0.0572]
[1750709163770,0.11019825,103230.0,103220.0,0.32033669]
[1750709163771,0.00989886,103230.0,103220.0,0.32033669]
[1750709163981,0.00989886,103230.0,103220.0,0.48325669]
[1750709164183,0.004,103230.0,103220.0,0.50263173]
[1750709164387,0.004,103230.0,103220.0,0.49294435]
[1750709164538,0.004,103230.0,103220.0,0.50263173]
[1750709164745,0.004,103230.0,103220.0,0.50163173]
[1750709165322,0.004,103230.0,103220.0,0.49194435]
[1750709165571,0.004,103230.0,103220.0,0.50163173]
[1750709165780,0.005,103230.0,103220.0,0.50163183]
[1750709165982,0.005,103230.0,103220.0,0.51131921]
[1750709166742,0.005,103230.0,103220.0,0.51431921]
[1750709167374,0.005,103230.0,103220.0,0.50463183]
[1750709167587,0.345,103230.0,103220.0,0.27212]
[1750709167796,0.345,103230.0,103220.0,0.29149599]
[1750709168636,0.345,103230.0,103220.0,0.30118384]
[1750709168849,0.345,103230.0,103220.0,0.49494473]
[1750709169062,0.345,103230.0,103220.0,0.27212]
[1750709169926,0.005,103230.0,103220.0,0.27212]
[1750709170169,0.345,103230.0,103220.0,0.27212]
[1750709170910,0.83832644,103230.0,103220.0,0.053]
[1750709171160,0.83832644,103230.0,103220.0,0.21988]
[1750709173000,0.83832644,103230.0,103220.0,0.003]
[1750709173247,0.83832644,103230.0,103220.0,0.16988]
[1750709174524,0.83832644,103230.0,103220.0,0.003]
[1750709175248,1.04211712,103230.0,103220.0,0.003]
[1750709176779,1.06016717,103230.0,103220.0,0.003]
[1750709178113,1.08327779,103230.0,103220.0,0.003]
[1750709178323,2.69901579,103230.0,103220.0,0.003]
[1750709178534,2.66506535,103230.0,103220.0,0.003]
[1750709179180,2.67409506,103230.0,103220.0,0.003]
[1750709180693,2.84093506,103230.0,103220.0,0.003]
[1750709181359,2.84771122,103230.0,103220.0,0.003]
[1750709182267,2.84773093,103230.0,103220.0,0.003]
[1750709182505,3.24441606,103230.0,103220.0,0.003]
[1750709183183,3.27351732,103230.0,103220.0,0.003]
[1750709183656,0.1613,103220.0,103190.0,0.1092]
[1750709183906,0.39485609,103200.0,103190.0,0.1093374]
[1750709184378,0.39485609,103200.0,103190.0,0.3128453]
[1750709184611,0.44029939,103210.0,103200.0,0.0299]
[1750709185509,0.44029939,103210.0,103200.0,0.0583]
[1750709185750,0.44029939,103210.0,103200.0,0.0299]
[1750709185997,0.83515548,103210.0,103200.0,0.0299]
[1750709186451,0.85325843,103210.0,103200.0,0.0299]
[1750709186668,0.85325843,103210.0,103200.0,0.0339]
[1750709187107,0.85325843,103210.0,103200.0,0.0369]
[1750709187812,0.83515548,103210.0,103200.0,0.0369]
[1750709188063,0.85325845,103210.0,103200.0,0.007]
[1750709189471,0.87646863,103210.0,103200.0,0.007]
[1750709189696,0.87649448,103210.0,103200.0,0.007]
[1750709190803,0.53649451,103210.0,103200.0,0.007]
[1750709191026,0.14163842,103210.0,103200.0,0.007]
[1750709191259,0.53649451,103210.0,103200.0,0.0637]
[1750709192140,0.01812885,103210.0,103200.0,0.31718826]
[1750709192385,0.41298494,103210.0,103200.0,0.1137]
[1750709192616,0.51328433,103210.0,103200.0,0.007]
[1750709193519,0.53649093,103210.0,103200.0,0.007]
[1750709194562,0.51328283,103210.0,103200.0,0.007]
[1750709195191,0.39485609,103200.0,103190.0,0.43707555]
[1750709195454,0.39485609,103200.0,103190.0,0.44676612]
[1750709195671,0.39485609,103200.0,103190.0,0.44676622]
[1750709195889,0.39485609,103200.0,103190.0,0.43707555]
[1750709196098,0.39485609,103200.0,103190.0,0.43707546]
[1750709196535,0.39485609,103200.0,103190.0,0.45076603]
[1750709196763,0.39485609,103200.0,103190.0,0.44107546]
[1750709196995,0.39485609,103200.0,103190.0,0.44807546]
[1750709197407,0.39485609,103200.0,103190.0,0.45776603]
[1750709197846,0.83515548,103210.0,103200.0,0.0265]
[1750709198076,0.35813442,103210.0,103200.0,0.26362566]
[1750709198330,0.75299051,103210.0,103200.0,0.29269438]
[1750709198560,0.34,103220.0,103210.0,0.2593971]
[1750709198782,0.34,103220.0,103210.0,0.2690858]
[1750709198783,0.35813485,103220.0,103210.0,0.2690858]
[1750709199202,0.34,103220.0,103210.0,0.2690858]
[1750709199461,0.35813421,103220.0,103210.0,0.2690858]
[1750709199680,0.35813421,103220.0,103210.0,0.2787744]
[1750709199888,0.35813421,103220.0,103210.0,0.28846282]